[Event "Late-Titled-Tuesday-Blitz-February-20-2024"]
[Site "Chess.com"]
[Date "2024.02.20"]
[Round "6"]
[White "Rutricks"]
[Black "Superfelix"]
[Result "0-1"]
[WhiteElo "2675"]
[BlackElo "2539"]
[TimeControl "180+1"]
[EndTime "15:06:33 PST"]
[Termination "Superfelix won on time"]

1. Nc3 {[%clk 0:02:43.9]} 1... d5 {[%clk 0:02:54.2]} 2. d4 {[%clk 0:02:43.6]}
2... g6 {[%clk 0:02:52.5]} 3. h4 {[%clk 0:02:43.5]} 3... h5 {[%clk 0:02:50.9]}
4. Bg5 {[%clk 0:02:40.4]} 4... Bg7 {[%clk 0:02:35.1]} 5. Qd2 {[%clk 0:02:35.7]}
5... Nf6 {[%clk 0:02:33.6]} 6. f3 {[%clk 0:02:35.6]} 6... Nc6 {[%clk 0:02:26.8]}
7. O-O-O {[%clk 0:02:25.5]} 7... Bf5 {[%clk 0:02:22.2]} 8. Nh3 {[%clk
0:01:33.1]} 8... Bxh3 {[%clk 0:02:20.4]} 9. Rxh3 {[%clk 0:01:29.8]} 9... b5
{[%clk 0:02:15.5]} 10. e4 {[%clk 0:01:14.2]} 10... b4 {[%clk 0:02:12.2]} 11. Bb5
{[%clk 0:01:14]} 11... bxc3 {[%clk 0:02:07.8]} 12. Bxc6+ {[%clk 0:01:07.7]}
12... Kf8 {[%clk 0:02:07.8]} 13. Qxc3 {[%clk 0:01:08.1]} 13... dxe4 {[%clk
0:02:01.6]} 14. Bxa8 {[%clk 0:01:04.5]} 14... Qxa8 {[%clk 0:02:02.5]} 15. Qxc7
{[%clk 0:00:55.8]} 15... e3 {[%clk 0:01:56.6]} 16. d5 {[%clk 0:00:45.2]} 16...
Kg8 {[%clk 0:01:52.3]} 17. Qc6 {[%clk 0:00:36.8]} 17... Qb8 {[%clk 0:01:49.2]}
18. Bxe3 {[%clk 0:00:28.2]} 18... Ne8 {[%clk 0:01:28.8]} 19. c3 {[%clk
0:00:14.8]} 19... Nd6 {[%clk 0:01:28.2]} 20. g4 {[%clk 0:00:10.6]} 20... Kh7
{[%clk 0:01:19.6]} 21. gxh5 {[%clk 0:00:10.5]} 21... Rc8 {[%clk 0:01:16.9]} 22.
hxg6+ {[%clk 0:00:09.4]} 22... fxg6 {[%clk 0:01:17.8]} 23. Qa4 {[%clk
0:00:06.7]} 23... Nc4 {[%clk 0:01:14.5]} 24. Qb3 {[%clk 0:00:03.6]} 24... Nxe3
{[%clk 0:01:10.9]} 25. Qxb8 {[%clk 0:00:04.2]} 25... Rxb8 {[%clk 0:01:11.1]} 26.
Rd3 {[%clk 0:00:04.8]} 26... Nc4 {[%clk 0:01:10.4]} 27. b3 {[%clk 0:00:05.5]}
27... Ne5 {[%clk 0:01:10.1]} 28. Rd1 {[%clk 0:00:05.6]} 28... Nf7 {[%clk
0:01:08.1]} 29. f4 {[%clk 0:00:04.9]} 29... Nd6 {[%clk 0:01:07]} 30. c4 {[%clk
0:00:04.7]} 30... a5 {[%clk 0:01:06]} 31. a4 {[%clk 0:00:03.6]} 31... Nf5 {[%clk
0:01:04.4]} 32. Re1 {[%clk 0:00:03.1]} 32... Bf6 {[%clk 0:01:03.4]} 33. h5
{[%clk 0:00:02.5]} 33... g5 {[%clk 0:01:03.1]} 34. fxg5 {[%clk 0:00:02.5]} 34...
Bxg5+ {[%clk 0:01:04]} 35. Kc2 {[%clk 0:00:02.9]} 35... Nd4+ {[%clk 0:01:03.6]}
36. Kb1 {[%clk 0:00:03.3]} 36... Nxb3 {[%clk 0:01:03.3]} 37. Kc2 {[%clk
0:00:02.2]} 37... Nc5 {[%clk 0:01:01]} 38. Rg1 {[%clk 0:00:01.7]} 38... Bf6
{[%clk 0:01:00.7]} 39. Kc1 {[%clk 0:00:01.2]} 39... Rb4 {[%clk 0:00:59.9]} 40.
Rhg3 {[%clk 0:00:01.7]} 40... Rxc4+ {[%clk 0:01:00]} 41. Kd2 {[%clk 0:00:02.6]}
41... Rxa4 {[%clk 0:00:58.5]} 42. Rg6 {[%clk 0:00:02.5]} 42... Rd4+ {[%clk
0:00:56.7]} 43. Ke3 {[%clk 0:00:02.8]} 43... Rxd5 {[%clk 0:00:53.9]} 44. h6
{[%clk 0:00:03.5]} 44... Rh5 {[%clk 0:00:53.6]} 45. R6g2 {[%clk 0:00:02.6]}
45... Rxh6 {[%clk 0:00:53.5]} 46. Kf4 {[%clk 0:00:01.4]} 46... a4 {[%clk
0:00:52.9]} 47. Kf5 {[%clk 0:00:01.9]} 47... a3 {[%clk 0:00:52.6]} 48. Rc2
{[%clk 0:00:01.9]} 48... Bd4 {[%clk 0:00:48.8]} 49. Rg4 {[%clk 0:00:01.6]} 49...
Rf6+ {[%clk 0:00:46.1]} 50. Kg5 {[%clk 0:00:01.9]} 50... Be3+ {[%clk 0:00:45.4]}
51. Kh4 {[%clk 0:00:02.2]} 51... Bf2+ {[%clk 0:00:40.1]} 52. Kh3 {[%clk
0:00:02.4]} 52... Nd3 {[%clk 0:00:37.7]} 53. Rc5 {[%clk 0:00:01.3]} 53... Nf4+
{[%clk 0:00:36.7]} 54. Kh2 {[%clk 0:00:01.2]} 54... Rh6+ {[%clk 0:00:36.9]} 0-1

[Event "Late-Titled-Tuesday-Blitz-February-20-2024"]
[Site "Chess.com"]
[Date "2024.02.20"]
[Round "6"]
[White "Grischuk"]
[Black "DarkAlekhine"]
[Result "0-1"]
[WhiteElo "3055"]
[BlackElo "2850"]
[TimeControl "180+1"]
[EndTime "15:06:34 PST"]
[Termination "DarkAlekhine won on time"]

1. d4 {[%clk 0:03:00.9]} 1... c5 {[%clk 0:03:00.1]} 2. d5 {[%clk 0:03:00.9]}
2... g6 {[%clk 0:03:00]} 3. e4 {[%clk 0:03:00.5]} 3... Bg7 {[%clk 0:03:00.6]} 4.
Nc3 {[%clk 0:02:59.8]} 4... d6 {[%clk 0:03:00.8]} 5. Nf3 {[%clk 0:02:59.7]} 5...
Nf6 {[%clk 0:03:00.7]} 6. Bc4 {[%clk 0:02:58.6]} 6... O-O {[%clk 0:02:56.9]} 7.
O-O {[%clk 0:02:58.3]} 7... Bg4 {[%clk 0:02:56.8]} 8. h3 {[%clk 0:02:57.8]} 8...
Bxf3 {[%clk 0:02:56.9]} 9. Qxf3 {[%clk 0:02:58.7]} 9... Nbd7 {[%clk 0:02:56.7]}
10. Qd1 {[%clk 0:02:58.3]} 10... Ne8 {[%clk 0:02:56]} 11. a4 {[%clk 0:02:51.8]}
11... Nc7 {[%clk 0:02:55.6]} 12. Bg5 {[%clk 0:02:43.6]} 12... h6 {[%clk
0:02:52.9]} 13. Be3 {[%clk 0:02:40.7]} 13... a6 {[%clk 0:02:47.2]} 14. a5 {[%clk
0:02:25.6]} 14... b5 {[%clk 0:02:46.8]} 15. axb6 {[%clk 0:02:25.1]} 15... Nxb6
{[%clk 0:02:46.7]} 16. Be2 {[%clk 0:02:22]} 16... a5 {[%clk 0:02:39.5]} 17. Qd2
{[%clk 0:02:21.7]} 17... Kh7 {[%clk 0:02:39.3]} 18. Ra2 {[%clk 0:02:17.7]} 18...
a4 {[%clk 0:02:35.4]} 19. Rfa1 {[%clk 0:02:10.7]} 19... Qd7 {[%clk 0:02:34.9]}
20. Nd1 {[%clk 0:00:57]} 20... e6 {[%clk 0:02:29.3]} 21. dxe6 {[%clk 0:00:56.1]}
21... Qxe6 {[%clk 0:02:10.3]} 22. Nc3 {[%clk 0:00:54.6]} 22... Qd7 {[%clk
0:01:50]} 23. Qd3 {[%clk 0:00:52.2]} 23... Qc6 {[%clk 0:01:40.3]} 24. Rd1 {[%clk
0:00:41.8]} 24... Rfd8 {[%clk 0:01:34.8]} 25. Bf3 {[%clk 0:00:36.9]} 25... Be5
{[%clk 0:01:07]} 26. Bc1 {[%clk 0:00:36]} 26... Qe8 {[%clk 0:00:52.5]} 27. Ne2
{[%clk 0:00:31]} 27... d5 {[%clk 0:00:38.2]} 28. exd5 {[%clk 0:00:28]} 28...
Ncxd5 {[%clk 0:00:39]} 29. Re1 {[%clk 0:00:04.1]} 29... Nb4 {[%clk 0:00:35.8]}
30. Qe3 {[%clk 0:00:04.6]} 30... Nxa2 {[%clk 0:00:24.9]} 31. Qxh6+ {[%clk
0:00:04.5]} 31... Kg8 {[%clk 0:00:25.2]} 32. Bxa8 {[%clk 0:00:05.2]} 32... Nxc1
{[%clk 0:00:20.5]} 33. Nxc1 {[%clk 0:00:06.1]} 33... Rxa8 {[%clk 0:00:14.7]} 34.
Nd3 {[%clk 0:00:06.2]} 34... Nd7 {[%clk 0:00:14.1]} 35. Nxe5 {[%clk 0:00:06]}
35... Nxe5 {[%clk 0:00:14.2]} 36. Qe3 {[%clk 0:00:06.5]} 36... Ra6 {[%clk
0:00:08.2]} 37. Rd1 {[%clk 0:00:02.6]} 37... Re6 {[%clk 0:00:07.2]} 38. Qxc5
{[%clk 0:00:02.8]} 38... Kg7 {[%clk 0:00:04.9]} 39. Qd4 {[%clk 0:00:02.9]} 39...
Kg8 {[%clk 0:00:05.4]} 40. Ra1 {[%clk 0:00:02.6]} 40... Ra6 {[%clk 0:00:03.1]}
0-1

[Event "Late-Titled-Tuesday-Blitz-February-20-2024"]
[Site "Chess.com"]
[Date "2024.02.20"]
[Round "6"]
[White "dedpihto_v_kozhanom_palto"]
[Black "delqate"]
[Result "1-0"]
[WhiteElo "2695"]
[BlackElo "2525"]
[TimeControl "180+1"]
[EndTime "15:06:34 PST"]
[Termination "dedpihto_v_kozhanom_palto won on time"]

1. c4 {[%clk 0:03:00.9]} 1... c6 {[%clk 0:02:57.8]} 2. d4 {[%clk 0:02:59]} 2...
d5 {[%clk 0:02:58.7]} 3. Nf3 {[%clk 0:02:59.4]} 3... Nf6 {[%clk 0:02:58.6]} 4.
Nc3 {[%clk 0:02:59.5]} 4... a6 {[%clk 0:02:58.8]} 5. cxd5 {[%clk 0:02:59.7]}
5... cxd5 {[%clk 0:02:59]} 6. Bg5 {[%clk 0:03:00.4]} 6... Nbd7 {[%clk
0:02:19.6]} 7. e3 {[%clk 0:02:57.7]} 7... e6 {[%clk 0:02:19.1]} 8. Bd3 {[%clk
0:02:54.2]} 8... Be7 {[%clk 0:02:15.2]} 9. O-O {[%clk 0:02:54.3]} 9... b5 {[%clk
0:02:12.2]} 10. a4 {[%clk 0:02:49]} 10... b4 {[%clk 0:02:12]} 11. Ne2 {[%clk
0:02:48]} 11... a5 {[%clk 0:02:05.2]} 12. Ne5 {[%clk 0:02:31.2]} 12... Nxe5
{[%clk 0:01:24]} 13. dxe5 {[%clk 0:02:32.1]} 13... Nd7 {[%clk 0:01:23.8]} 14.
Bxe7 {[%clk 0:02:28.8]} 14... Qxe7 {[%clk 0:01:24.7]} 15. f4 {[%clk 0:02:28.5]}
15... O-O {[%clk 0:01:23.8]} 16. Nd4 {[%clk 0:02:26.5]} 16... Nc5 {[%clk
0:01:22.5]} 17. Bb5 {[%clk 0:01:34.7]} 17... Bb7 {[%clk 0:01:16.1]} 18. Rc1
{[%clk 0:01:30]} 18... Rac8 {[%clk 0:01:13.5]} 19. Qe2 {[%clk 0:01:30.2]} 19...
Ne4 {[%clk 0:01:10.2]} 20. Bd3 {[%clk 0:01:24.6]} 20... Nc5 {[%clk 0:01:08.8]}
21. Rfd1 {[%clk 0:01:10.1]} 21... Nxd3 {[%clk 0:00:56.5]} 22. Qxd3 {[%clk
0:01:11]} 22... Rc5 {[%clk 0:00:54.3]} 23. Nb3 {[%clk 0:01:07.5]} 23... Rxc1
{[%clk 0:00:45.1]} 24. Rxc1 {[%clk 0:01:08.4]} 24... Ra8 {[%clk 0:00:44.9]} 25.
Nd4 {[%clk 0:00:57.9]} 25... g6 {[%clk 0:00:34.4]} 26. g3 {[%clk 0:00:52.4]}
26... Ba6 {[%clk 0:00:29.3]} 27. Qc2 {[%clk 0:00:52.6]} 27... Rc8 {[%clk
0:00:26.1]} 28. Qd2 {[%clk 0:00:53.2]} 28... Qd7 {[%clk 0:00:23.1]} 29. b3
{[%clk 0:00:51]} 29... Rc7 {[%clk 0:00:20.7]} 30. Rxc7 {[%clk 0:00:48]} 30...
Qxc7 {[%clk 0:00:21]} 31. Qc2 {[%clk 0:00:48.4]} 31... Qc3 {[%clk 0:00:15]} 32.
Qxc3 {[%clk 0:00:40.6]} 32... bxc3 {[%clk 0:00:15]} 33. Kf2 {[%clk 0:00:41.2]}
33... Bd3 {[%clk 0:00:12.3]} 34. Ke1 {[%clk 0:00:41.8]} 34... Kf8 {[%clk
0:00:06.9]} 35. Kd1 {[%clk 0:00:41.8]} 35... Ke8 {[%clk 0:00:06.1]} 36. Nc6
{[%clk 0:00:16.3]} 36... Kd7 {[%clk 0:00:06.5]} 37. Nxa5 {[%clk 0:00:16.9]}
37... Kc7 {[%clk 0:00:03.2]} 38. b4 {[%clk 0:00:17.4]} 38... Kb6 {[%clk
0:00:03.4]} 39. Kc1 {[%clk 0:00:17]} 39... Kc7 {[%clk 0:00:03.4]} 40. Nb3 {[%clk
0:00:16.7]} 40... Kb6 {[%clk 0:00:03.8]} 41. Nd4 {[%clk 0:00:13.8]} 41... Ka6
{[%clk 0:00:03.5]} 42. h4 {[%clk 0:00:12.5]} 42... Kb6 {[%clk 0:00:03.1]} 43.
Nb3 {[%clk 0:00:08.4]} 1-0

[Event "Late-Titled-Tuesday-Blitz-February-20-2024"]
[Site "Chess.com"]
[Date "2024.02.20"]
[Round "6"]
[White "Durarbayli"]
[Black "Goryachkina"]
[Result "1/2-1/2"]
[WhiteElo "2948"]
[BlackElo "2699"]
[TimeControl "180+1"]
[EndTime "15:06:40 PST"]
[Termination "Game drawn by repetition"]

1. e4 {[%clk 0:03:00.9]} 1... c5 {[%clk 0:02:59.3]} 2. Nf3 {[%clk 0:03:00.3]}
2... e6 {[%clk 0:02:59.3]} 3. d4 {[%clk 0:03:00.3]} 3... cxd4 {[%clk 0:02:59.5]}
4. Nxd4 {[%clk 0:03:01.2]} 4... Nf6 {[%clk 0:02:58.6]} 5. Nc3 {[%clk 0:03:01.1]}
5... Nc6 {[%clk 0:02:58.6]} 6. Nxc6 {[%clk 0:02:58.3]} 6... bxc6 {[%clk
0:02:58.5]} 7. e5 {[%clk 0:02:58.9]} 7... Nd5 {[%clk 0:02:58.5]} 8. Ne4 {[%clk
0:02:59.6]} 8... Bb7 {[%clk 0:02:58.5]} 9. Nd6+ {[%clk 0:02:57.3]} 9... Bxd6
{[%clk 0:02:56.3]} 10. exd6 {[%clk 0:02:58.2]} 10... c5 {[%clk 0:02:37.9]} 11.
c4 {[%clk 0:02:56.2]} 11... Nf6 {[%clk 0:02:33.9]} 12. f3 {[%clk 0:02:54.6]}
12... O-O {[%clk 0:02:26.4]} 13. Bd3 {[%clk 0:02:54.3]} 13... e5 {[%clk
0:02:18.7]} 14. O-O {[%clk 0:02:50.9]} 14... Re8 {[%clk 0:02:18.4]} 15. Bg5
{[%clk 0:02:24.9]} 15... h6 {[%clk 0:02:17.5]} 16. Bh4 {[%clk 0:02:24.5]} 16...
g5 {[%clk 0:02:08]} 17. Bf2 {[%clk 0:02:22.6]} 17... Nh5 {[%clk 0:02:03.5]} 18.
Bxc5 {[%clk 0:02:14.6]} 18... Qf6 {[%clk 0:02:00.9]} 19. Be4 {[%clk 0:02:09.7]}
19... Bxe4 {[%clk 0:01:46]} 20. fxe4 {[%clk 0:02:10.6]} 20... Qg6 {[%clk
0:01:46.1]} 21. Qf3 {[%clk 0:01:39.6]} 21... Rac8 {[%clk 0:01:41.8]} 22. b4
{[%clk 0:01:39.4]} 22... Nf4 {[%clk 0:01:36.4]} 23. Rad1 {[%clk 0:01:30.7]}
23... Re6 {[%clk 0:01:09.5]} 24. g3 {[%clk 0:01:20.9]} 24... g4 {[%clk
0:01:07.7]} 25. Qe3 {[%clk 0:01:18]} 25... Nh3+ {[%clk 0:01:06.2]} 26. Kg2
{[%clk 0:01:13.6]} 26... Ng5 {[%clk 0:01:03.1]} 27. Rf5 {[%clk 0:01:11.7]} 27...
Nf3 {[%clk 0:00:31.5]} 28. Rf1 {[%clk 0:01:00.3]} 28... Rf6 {[%clk 0:00:27.3]}
29. R1xf3 {[%clk 0:00:40.9]} 29... gxf3+ {[%clk 0:00:26.2]} 30. Qxf3 {[%clk
0:00:41.8]} 30... Rxf5 {[%clk 0:00:18.5]} 31. exf5 {[%clk 0:00:42.2]} 31... Qf6
{[%clk 0:00:18.7]} 32. Qe4 {[%clk 0:00:40.6]} 32... a5 {[%clk 0:00:18]} 33. a3
{[%clk 0:00:40.3]} 33... axb4 {[%clk 0:00:17.9]} 34. axb4 {[%clk 0:00:41.2]}
34... Kh7 {[%clk 0:00:13]} 35. h4 {[%clk 0:00:35.3]} 35... h5 {[%clk 0:00:12.4]}
36. Kh3 {[%clk 0:00:35.2]} 36... Rg8 {[%clk 0:00:12.1]} 37. Be3 {[%clk
0:00:16.5]} 37... Rg4 {[%clk 0:00:11.8]} 38. Qf3 {[%clk 0:00:17.2]} 38... e4
{[%clk 0:00:11.9]} 39. Qf2 {[%clk 0:00:16]} 39... Qxd6 {[%clk 0:00:11.3]} 40. b5
{[%clk 0:00:16.2]} 40... Qd3 {[%clk 0:00:08]} 41. b6 {[%clk 0:00:14.9]} 41...
Qxc4 {[%clk 0:00:08.2]} 42. f6 {[%clk 0:00:14.1]} 42... Qb5 {[%clk 0:00:08.3]}
43. Kh2 {[%clk 0:00:13.7]} 43... Rg8 {[%clk 0:00:06.2]} 44. Qf4 {[%clk
0:00:14.3]} 44... Rg6 {[%clk 0:00:05.2]} 45. Qxe4 {[%clk 0:00:13.4]} 45... Qe2+
{[%clk 0:00:05.2]} 46. Kh3 {[%clk 0:00:12]} 46... Qf1+ {[%clk 0:00:05.5]} 47.
Kh2 {[%clk 0:00:12.2]} 47... Qe2+ {[%clk 0:00:05.8]} 48. Kh3 {[%clk 0:00:12.6]}
48... Qf1+ {[%clk 0:00:06.3]} 49. Kh2 {[%clk 0:00:12.9]} 49... Qe2+ {[%clk
0:00:06.7]} 1/2-1/2

[Event "Late-Titled-Tuesday-Blitz-February-20-2024"]
[Site "Chess.com"]
[Date "2024.02.20"]
[Round "6"]
[White "Zhigalko_Sergei"]
[Black "gahryman"]
[Result "1-0"]
[WhiteElo "2939"]
[BlackElo "2705"]
[TimeControl "180+1"]
[EndTime "15:06:42 PST"]
[Termination "Zhigalko_Sergei won by resignation"]

1. e4 {[%clk 0:03:00.9]} 1... c5 {[%clk 0:02:57.9]} 2. Nf3 {[%clk 0:02:59.4]}
2... Nc6 {[%clk 0:02:56.8]} 3. c3 {[%clk 0:02:59.7]} 3... Nf6 {[%clk 0:02:50.1]}
4. e5 {[%clk 0:03:00]} 4... Nd5 {[%clk 0:02:50.7]} 5. Bc4 {[%clk 0:03:00.7]}
5... Nb6 {[%clk 0:02:51]} 6. Bb3 {[%clk 0:03:00.8]} 6... d5 {[%clk 0:02:50.2]}
7. exd6 {[%clk 0:03:00.7]} 7... Qxd6 {[%clk 0:02:50.6]} 8. O-O {[%clk
0:03:00.3]} 8... c4 {[%clk 0:02:48.3]} 9. Bc2 {[%clk 0:03:00.3]} 9... Bg4 {[%clk
0:02:49]} 10. Re1 {[%clk 0:02:59.9]} 10... Qf6 {[%clk 0:02:47.2]} 11. b3 {[%clk
0:02:20.8]} 11... Bxf3 {[%clk 0:02:32.4]} 12. Qxf3 {[%clk 0:02:20.3]} 12... Qxf3
{[%clk 0:02:32.5]} 13. gxf3 {[%clk 0:02:21.2]} 13... O-O-O {[%clk 0:02:29]} 14.
Na3 {[%clk 0:02:20.5]} 14... cxb3 {[%clk 0:02:19.8]} 15. axb3 {[%clk 0:02:21.4]}
15... e6 {[%clk 0:02:06.6]} 16. Nc4 {[%clk 0:02:06.3]} 16... Nd5 {[%clk
0:02:04.7]} 17. b4 {[%clk 0:01:58.6]} 17... a6 {[%clk 0:02:04.4]} 18. Rb1 {[%clk
0:01:47.9]} 18... b5 {[%clk 0:01:48.1]} 19. Ne3 {[%clk 0:01:47.8]} 19... Nf4
{[%clk 0:01:30.6]} 20. d4 {[%clk 0:01:41.1]} 20... Bd6 {[%clk 0:01:27.9]} 21.
Ra1 {[%clk 0:01:40.1]} 21... Kb7 {[%clk 0:01:23.3]} 22. Be4 {[%clk 0:01:40.1]}
22... Rc8 {[%clk 0:01:13.8]} 23. d5 {[%clk 0:01:39.3]} 23... exd5 {[%clk
0:01:05.9]} 24. Nxd5 {[%clk 0:01:40.2]} 24... Nxd5 {[%clk 0:01:06]} 25. Bxd5
{[%clk 0:01:41.1]} 25... Rhd8 {[%clk 0:01:02.9]} 26. Bxf7 {[%clk 0:01:28.8]}
26... Be5 {[%clk 0:00:58.4]} 27. Ra3 {[%clk 0:01:20.1]} 27... Bf6 {[%clk
0:00:53.1]} 28. Bf4 {[%clk 0:01:09.3]} 28... Rd3 {[%clk 0:00:43.8]} 29. Re3
{[%clk 0:01:03.6]} 29... Rd1+ {[%clk 0:00:27.8]} 30. Kg2 {[%clk 0:01:03.3]}
30... Rf8 {[%clk 0:00:28.7]} 31. Bb3 {[%clk 0:00:57.8]} 31... Rc1 {[%clk
0:00:22.5]} 32. Bd5 {[%clk 0:00:55.8]} 32... Rd1 {[%clk 0:00:19.4]} 33. Bxc6+
{[%clk 0:00:50.7]} 33... Kxc6 {[%clk 0:00:19.7]} 34. Rxa6+ {[%clk 0:00:50.1]}
34... Kb7 {[%clk 0:00:19.3]} 35. Ree6 {[%clk 0:00:42.4]} 35... Bd8 {[%clk
0:00:16.5]} 36. Be3 {[%clk 0:00:41.2]} 36... Rd5 {[%clk 0:00:15]} 37. Ra7+
{[%clk 0:00:39.5]} 37... Kc8 {[%clk 0:00:14.8]} 38. Rxg7 {[%clk 0:00:39.4]}
38... Rd7 {[%clk 0:00:12.1]} 39. Rxd7 {[%clk 0:00:23.1]} 39... Kxd7 {[%clk
0:00:13]} 40. Re5 {[%clk 0:00:22.7]} 40... Rg8+ {[%clk 0:00:12.1]} 41. Kf1
{[%clk 0:00:22.5]} 41... Kc6 {[%clk 0:00:12.8]} 42. Rc5+ {[%clk 0:00:22.3]}
42... Kd6 {[%clk 0:00:13.2]} 43. Rxb5 {[%clk 0:00:22]} 43... Bf6 {[%clk
0:00:14.1]} 44. c4 {[%clk 0:00:20.6]} 44... Ra8 {[%clk 0:00:13.4]} 45. Rb6+
{[%clk 0:00:19.7]} 45... Ke7 {[%clk 0:00:13.2]} 46. Rb7+ {[%clk 0:00:18.7]}
46... Ke6 {[%clk 0:00:13.3]} 47. Rxh7 {[%clk 0:00:19.6]} 47... Ra2 {[%clk
0:00:12.8]} 48. b5 {[%clk 0:00:17.4]} 48... Rc2 {[%clk 0:00:12]} 49. c5 {[%clk
0:00:16.8]} 49... Rb2 {[%clk 0:00:11.6]} 50. b6 {[%clk 0:00:16.9]} 1-0

[Event "Late-Titled-Tuesday-Blitz-February-20-2024"]
[Site "Chess.com"]
[Date "2024.02.20"]
[Round "6"]
[White "Elsa167"]
[Black "Nouali_Mohamed"]
[Result "1-0"]
[WhiteElo "2889"]
[BlackElo "2559"]
[TimeControl "180+1"]
[EndTime "15:06:42 PST"]
[Termination "Elsa167 won on time"]

1. d4 {[%clk 0:03:00.9]} 1... Nf6 {[%clk 0:02:59.6]} 2. c4 {[%clk 0:02:59.3]}
2... g6 {[%clk 0:03:00]} 3. Nc3 {[%clk 0:02:55.6]} 3... Bg7 {[%clk 0:03:00.1]}
4. e4 {[%clk 0:02:55.5]} 4... d6 {[%clk 0:03:00.6]} 5. h3 {[%clk 0:02:55.9]}
5... O-O {[%clk 0:03:00.7]} 6. Be3 {[%clk 0:02:56.4]} 6... c5 {[%clk 0:02:59.5]}
7. Nf3 {[%clk 0:02:56.2]} 7... cxd4 {[%clk 0:02:59]} 8. Nxd4 {[%clk 0:02:57.1]}
8... Nc6 {[%clk 0:02:59.6]} 9. Be2 {[%clk 0:02:57.3]} 9... Nxd4 {[%clk
0:02:59.9]} 10. Bxd4 {[%clk 0:02:57.7]} 10... Be6 {[%clk 0:03:00.8]} 11. O-O
{[%clk 0:02:55.6]} 11... Qa5 {[%clk 0:03:00.7]} 12. Rc1 {[%clk 0:02:42.3]} 12...
Rfc8 {[%clk 0:02:59.9]} 13. b3 {[%clk 0:02:42.2]} 13... a6 {[%clk 0:03:00.5]}
14. f4 {[%clk 0:02:35.4]} 14... b5 {[%clk 0:02:55.4]} 15. f5 {[%clk 0:02:34.2]}
15... Bd7 {[%clk 0:02:54]} 16. fxg6 {[%clk 0:02:24.5]} 16... hxg6 {[%clk
0:02:52.8]} 17. Nd5 {[%clk 0:01:49.8]} 17... Nxd5 {[%clk 0:02:42.1]} 18. exd5
{[%clk 0:01:48.7]} 18... Bxd4+ {[%clk 0:02:28.8]} 19. Qxd4 {[%clk 0:01:49.6]}
19... Qxa2 {[%clk 0:02:19.4]} 20. Bd3 {[%clk 0:01:21.4]} 20... bxc4 {[%clk
0:01:32.8]} 21. bxc4 {[%clk 0:01:21.2]} 21... Qa3 {[%clk 0:01:29.1]} 22. Rce1
{[%clk 0:00:56.5]} 22... Qc5 {[%clk 0:00:56.6]} 23. Qxc5 {[%clk 0:00:54.4]}
23... Rxc5 {[%clk 0:00:57.4]} 24. Rxe7 {[%clk 0:00:54.1]} 24... Be8 {[%clk
0:00:57.8]} 25. Rf6 {[%clk 0:00:32.5]} 25... a5 {[%clk 0:00:46.6]} 26. Rxd6
{[%clk 0:00:32.1]} 26... a4 {[%clk 0:00:46.9]} 27. Re2 {[%clk 0:00:27.7]} 27...
Rb8 {[%clk 0:00:35.8]} 28. Ra6 {[%clk 0:00:27]} 28... Kf8 {[%clk 0:00:20.3]} 29.
Kf2 {[%clk 0:00:26.1]} 29... Rb3 {[%clk 0:00:19.9]} 30. Re3 {[%clk 0:00:17.3]}
30... Bd7 {[%clk 0:00:18.7]} 31. Ra7 {[%clk 0:00:13.6]} 31... Bc8 {[%clk
0:00:16.6]} 32. Rf3 {[%clk 0:00:11.4]} 32... f5 {[%clk 0:00:14.6]} 33. Rxa4
{[%clk 0:00:09.7]} 33... Kg7 {[%clk 0:00:08.8]} 34. Ke3 {[%clk 0:00:09.9]} 34...
Rc7 {[%clk 0:00:04.6]} 35. Kd4 {[%clk 0:00:10.1]} 35... Kf6 {[%clk 0:00:03.3]}
36. Ra5 {[%clk 0:00:06]} 36... Kg5 {[%clk 0:00:02.9]} 37. Rc5 {[%clk 0:00:06.2]}
37... Rxc5 {[%clk 0:00:01.8]} 38. Kxc5 {[%clk 0:00:07.1]} 38... Ba6 {[%clk
0:00:02]} 39. d6 {[%clk 0:00:06.7]} 39... Bc8 {[%clk 0:00:01.2]} 40. Kc6 {[%clk
0:00:07.3]} 40... Rb2 {[%clk 0:00:01.4]} 41. Bf1 {[%clk 0:00:04.4]} 41... Be6
{[%clk 0:00:01]} 42. c5 {[%clk 0:00:04.5]} 1-0

[Event "Late-Titled-Tuesday-Blitz-February-20-2024"]
[Site "Chess.com"]
[Date "2024.02.20"]
[Round "6"]
[White "miraitrunks"]
[Black "toninhojit"]
[Result "0-1"]
[WhiteElo "2207"]
[BlackElo "2461"]
[TimeControl "180+1"]
[EndTime "15:06:42 PST"]
[Termination "toninhojit won on time"]

1. e4 {[%clk 0:03:00.9]} 1... c5 {[%clk 0:02:58.3]} 2. Nc3 {[%clk 0:02:57.7]}
2... a6 {[%clk 0:02:57.7]} 3. a4 {[%clk 0:02:56.5]} 3... e6 {[%clk 0:02:57.5]}
4. Nge2 {[%clk 0:02:56.6]} 4... d6 {[%clk 0:02:56.9]} 5. g3 {[%clk 0:02:55.6]}
5... Nf6 {[%clk 0:02:57]} 6. Bg2 {[%clk 0:02:56]} 6... Be7 {[%clk 0:02:57.7]} 7.
O-O {[%clk 0:02:56.2]} 7... O-O {[%clk 0:02:58.4]} 8. h3 {[%clk 0:02:56.7]} 8...
Nc6 {[%clk 0:02:58.3]} 9. d4 {[%clk 0:02:54.5]} 9... cxd4 {[%clk 0:02:59.2]} 10.
Nxd4 {[%clk 0:02:55.3]} 10... Bd7 {[%clk 0:02:59.9]} 11. Be3 {[%clk 0:02:49.6]}
11... Rc8 {[%clk 0:02:58.3]} 12. f4 {[%clk 0:02:47]} 12... Nxd4 {[%clk
0:02:55.8]} 13. Bxd4 {[%clk 0:02:46.7]} 13... Bc6 {[%clk 0:02:56.7]} 14. e5
{[%clk 0:02:44.8]} 14... dxe5 {[%clk 0:02:55.1]} 15. Bxe5 {[%clk 0:02:43.7]}
15... Bxg2 {[%clk 0:02:53.9]} 16. Kxg2 {[%clk 0:02:44.6]} 16... Nd7 {[%clk
0:02:50.3]} 17. Qg4 {[%clk 0:02:31.9]} 17... Nxe5 {[%clk 0:02:48.1]} 18. fxe5
{[%clk 0:02:32.4]} 18... Qc7 {[%clk 0:02:42.1]} 19. Rae1 {[%clk 0:02:26.4]}
19... b5 {[%clk 0:02:29.9]} 20. axb5 {[%clk 0:02:24.5]} 20... axb5 {[%clk
0:02:30.8]} 21. Re4 {[%clk 0:02:23.8]} 21... b4 {[%clk 0:02:28.9]} 22. Ne2
{[%clk 0:02:10.5]} 22... Qxc2 {[%clk 0:02:28.7]} 23. Rf6 {[%clk 0:01:55.7]}
23... Kh8 {[%clk 0:01:47]} 24. Rf2 {[%clk 0:00:47]} 24... Qc6 {[%clk 0:01:39.2]}
25. Kh2 {[%clk 0:00:42.9]} 25... f5 {[%clk 0:01:21.4]} 26. exf6 {[%clk
0:00:39.4]} 26... Bxf6 {[%clk 0:01:19.2]} 27. Rxe6 {[%clk 0:00:34.9]} 27... Qc4
{[%clk 0:01:19.3]} 28. Nf4 {[%clk 0:00:28.7]} 28... Qd4 {[%clk 0:00:54.8]} 29.
Rfe2 {[%clk 0:00:27.3]} 29... b3 {[%clk 0:00:54.9]} 30. Qh5 {[%clk 0:00:26.7]}
30... Kg8 {[%clk 0:00:49.9]} 31. Nd5 {[%clk 0:00:23.7]} 31... Rc5 {[%clk
0:00:22.4]} 32. Nxf6+ {[%clk 0:00:19.5]} 32... gxf6 {[%clk 0:00:23.3]} 33. Qh6
{[%clk 0:00:12.8]} 33... Re5 {[%clk 0:00:17.2]} 34. R2xe5 {[%clk 0:00:10.2]}
34... fxe5 {[%clk 0:00:17.1]} 35. Qg5+ {[%clk 0:00:09.2]} 35... Kh8 {[%clk
0:00:17.1]} 36. h4 {[%clk 0:00:09.8]} 36... Qf2+ {[%clk 0:00:14.2]} 37. Kh3
{[%clk 0:00:10.1]} 37... Qf1+ {[%clk 0:00:13.9]} 38. Kg4 {[%clk 0:00:10.4]}
38... Qd1+ {[%clk 0:00:14.6]} 39. Kh3 {[%clk 0:00:10.6]} 39... Qf1+ {[%clk
0:00:13]} 40. Kg4 {[%clk 0:00:10.5]} 40... Rg8 {[%clk 0:00:10.6]} 41. Re8 {[%clk
0:00:02.3]} 41... Rxe8 {[%clk 0:00:09.2]} 42. h5 {[%clk 0:00:01.4]} 42... Qe2+
{[%clk 0:00:08]} 0-1